fUST/lending_fUST_20251106
["ID","MTS","AMOUNT","RATE_DAILY","PERIOD"]
[393297435,1762429840796,-232.40346,0.0002489,7]
[393297437,1762429840805,-268.489591,0.0002489,7]
[393297439,1762429840815,-232.40346,0.0002489,7]
[393297441,1762429840824,-232.40346,0.0002489,7]
[393297443,1762429840833,-232.40346,0.0002489,7]
[393297445,1762429840843,-232.40346,0.0002489,7]
[393297447,1762429840852,-151.0,0.0002489,7]
[393297449,1762429840862,-151.0,0.0002489,7]
[393297451,1762429840871,-232.40346,0.0002489,7]
[393297453,1762429840882,-151.0,0.0002489,7]
[393297455,1762429840891,-232.40346,0.0002489,7]
[393297458,1762429840903,-232.40346,0.0002489,7]
[393297459,1762429840914,-160.976299,0.0002489,7]
[393297461,1762429840923,-151.159052,0.0002489,7]
[393297463,1762429840932,-151.0,0.0002489,7]
[393297465,1762429840941,-151.0,0.0002489,7]
[393297467,1762429840950,-151.0,0.0002489,7]
[393297469,1762429840959,-151.0,0.0002489,7]
[393297471,1762429840968,-151.0,0.0002489,7]
[393297473,1762429840977,-151.0,0.0002489,7]
[393297475,1762429840987,-151.0,0.0002489,7]
[393297477,1762429840996,-151.0,0.0002489,7]
[393297479,1762429841006,-151.0,0.0002489,7]
[393297481,1762429841015,-247.0117,0.0002489,7]
[393297483,1762429841024,-151.0,0.0002489,7]
[393297485,1762429841033,-151.0,0.0002489,7]
[393297487,1762429841042,-151.0,0.0002489,7]
[393297489,1762429841051,-151.0,0.0002489,7]
[393297491,1762429841060,-200.0,0.0002489,7]
[393297493,1762429841069,-151.0,0.0002489,7]
[393297495,1762429841078,-151.0,0.0002489,7]
[393297497,1762429841087,-151.0,0.0002489,7]
[393297499,1762429841095,-195.150287,0.0002489,7]
[393297501,1762429841104,-151.0,0.0002489,7]
[393297503,1762429841113,-151.0,0.0002489,7]
[393297505,1762429841122,-151.0,0.0002489,7]
[393297507,1762429841132,-151.0,0.0002489,7]
[393297509,1762429841141,-283.247746,0.0002489,7]
[393297511,1762429841150,-151.0,0.0002489,7]
[393297513,1762429841159,-151.0,0.0002489,7]
[393297515,1762429841168,-151.0,0.0002489,7]
[393297517,1762429841176,-151.0,0.0002489,7]
[393297519,1762429841186,-315.164797,0.0002489,7]
[393297521,1762429841194,-315.164797,0.0002489,7]
[393297523,1762429841203,-315.164797,0.0002489,7]
[393297525,1762429841212,-315.164797,0.0002489,7]
[393297527,1762429841221,-315.164797,0.0002489,7]
[393297528,1762429841230,-315.164797,0.0002489,7]
[393297530,1762429841239,-315.164797,0.0002489,7]
[393297532,1762429841248,-315.164797,0.0002489,7]
[393297534,1762429841258,-315.164797,0.0002489,7]
[393297536,1762429841267,-315.164797,0.0002489,7]
[393297538,1762429841276,-315.164797,0.0002489,7]
[393297540,1762429841285,-315.164795,0.0002489,7]
[393297542,1762429841293,-151.0,0.0002489,7]
[393297544,1762429841302,-151.0,0.0002489,7]
[393297546,1762429841312,-151.0,0.0002489,7]
[393297548,1762429841320,-151.0,0.0002489,7]
[393297550,1762429841329,-206.516256,0.0002489,7]
[393297553,1762429841342,-151.0,0.0002489,7]
[393297555,1762429841351,-151.0,0.0002489,7]
[393297556,1762429841360,-151.0,0.0002489,7]
[393297558,1762429841369,-151.0,0.0002489,7]
[393297560,1762429841379,-151.0,0.0002489,7]
[393297562,1762429841388,-151.0,0.0002489,7]
[393297564,1762429841398,-151.0,0.0002489,7]
[393297566,1762429841407,-198.6753,0.0002489,7]
[393297568,1762429841417,-157.864665,0.0002489,7]
[393297570,1762429841427,-157.864665,0.0002489,7]
[393297572,1762429841436,-157.864665,0.0002489,7]
[393297574,1762429841445,-157.864665,0.0002489,7]
[393297576,1762429841454,-157.864665,0.0002489,7]
[393297578,1762429841463,-157.864665,0.0002489,7]
[393297580,1762429841472,-157.864665,0.0002489,7]
[393297582,1762429841482,-157.864665,0.0002489,7]
[393297584,1762429841491,-157.864665,0.0002489,7]
[393297586,1762429841501,-216.062872,0.0002489,7]
[393297588,1762429841511,-216.062872,0.0002489,7]
[393297590,1762429841520,-157.864665,0.0002489,7]
[393297592,1762429841529,-157.864665,0.0002489,7]
[393297594,1762429841538,-157.864657,0.0002489,7]
[393297596,1762429841548,-216.062872,0.0002489,7]
[393297598,1762429841557,-216.062872,0.0002489,7]
[393297600,1762429841568,-216.062872,0.0002489,7]
[393297602,1762429841577,-216.062872,0.0002489,7]
[393297604,1762429841587,-216.062872,0.0002489,7]
[393297606,1762429841596,-216.062878,0.0002489,7]
[393297607,1762429841605,-357.970504,0.0002489,7]
[393297608,1762429841614,-357.970504,0.0002489,7]
[393297609,1762429841622,-357.970504,0.0002489,7]
[393297610,1762429841632,-357.970504,0.0002489,7]
[393297611,1762429841642,-357.970504,0.0002489,7]
[393297612,1762429841652,-357.970504,0.0002489,7]
[393297613,1762429841661,-357.970504,0.0002489,7]
[393297614,1762429841670,-357.970512,0.0002489,7]
[393297615,1762429841679,-404.39781575,0.00024897,2]
[393297616,1762429841688,-1870.43,0.000249,7]
[393297617,1762429841697,-151.0,0.000249,7]
[393297618,1762429841706,-151.0,0.000249,7]
[393297619,1762429841715,-212.367472,0.000249,7]
[393297620,1762429841724,-151.0,0.000249,7]
[393297621,1762429841733,-151.782686,0.000249,7]
[393297622,1762429841742,-152.552368,0.000249,7]
[393297623,1762429841751,-151.0,0.000249,7]
[393297624,1762429841760,-151.0,0.000249,7]
[393297625,1762429841769,-151.0,0.000249,7]
[393297626,1762429841778,-151.0,0.000249,7]
[393297627,1762429841787,-151.0,0.000249,7]
[393297628,1762429841796,-151.0,0.000249,7]
[393297629,1762429841805,-151.0,0.000249,7]
[393297630,1762429841814,-151.0,0.000249,7]
[393297631,1762429841823,-151.0,0.000249,7]
[393297632,1762429841832,-151.0,0.000249,7]
[393297633,1762429841841,-151.0,0.000249,7]
[393297634,1762429841850,-209.359167,0.000249,7]
[393297635,1762429841859,-209.359167,0.000249,7]
[393297636,1762429841868,-209.359167,0.000249,7]
[393297637,1762429841877,-209.359167,0.000249,7]
[393297638,1762429841886,-161.758337,0.000249,7]
[393297639,1762429841895,-151.981515,0.000249,7]
[393297640,1762429841908,-151.0,0.000249,7]
[393297641,1762429841917,-168.452436,0.000249,7]
[393297642,1762429841926,-154.592407,0.000249,7]
[393297643,1762429841936,-151.0,0.000249,7]
[393297644,1762429841946,-151.0,0.000249,7]
[393297645,1762429841955,-151.0,0.000249,7]
[393297647,1762429841964,-151.0,0.000249,7]
[393297649,1762429841975,-151.0,0.000249,7]
[393297651,1762429841984,-151.0,0.000249,7]
[393297652,1762429841994,-247.193805,0.000249,7]
[393297653,1762429842003,-151.0,0.000249,7]
[393297654,1762429842012,-151.0,0.000249,7]
[393297655,1762429842021,-264.070749,0.000249,7]
[393297656,1762429842031,-152.375786,0.000249,7]
[393297657,1762429842040,-151.0,0.000249,7]
[393297658,1762429842050,-152.719542,0.000249,7]
[393297659,1762429842059,-325.046314,0.000249,7]
[393297660,1762429842069,-325.046314,0.000249,7]
[393297661,1762429842078,-325.046314,0.000249,7]
[393297662,1762429842087,-325.046314,0.000249,7]
[393297663,1762429842096,-325.046314,0.000249,7]
[393297664,1762429842105,-325.046314,0.000249,7]
[393297665,1762429842114,-325.046314,0.000249,7]
[393297666,1762429842123,-325.046314,0.000249,7]
[393297667,1762429842133,-325.046314,0.000249,7]
[393297668,1762429842142,-325.046314,0.000249,7]
[393297669,1762429842151,-325.046314,0.000249,7]
[393297670,1762429842159,-325.046314,0.000249,7]
[393297671,1762429842170,-151.0,0.000249,7]
[393297672,1762429842179,-151.0,0.000249,7]
[393297673,1762429842188,-151.0,0.000249,7]
[393297674,1762429842197,-151.0,0.000249,7]
[393297675,1762429842207,-151.0,0.000249,7]
[393297676,1762429842216,-151.0,0.000249,7]
[393297677,1762429842225,-151.0,0.000249,7]
[393297678,1762429842234,-151.0,0.000249,7]
[393297679,1762429842244,-151.0,0.000249,7]
[393297680,1762429842253,-151.0,0.000249,7]
[393297681,1762429842263,-151.0,0.000249,7]
[393297682,1762429842274,-151.0,0.000249,7]
[393297683,1762429842284,-151.0,0.000249,7]
[393297684,1762429842294,-151.0,0.000249,7]
[393297685,1762429842304,-151.0,0.000249,7]
[393297686,1762429842313,-200.81348,0.000249,7]
[393297687,1762429842322,-151.0,0.000249,7]
[393297688,1762429842332,-151.0,0.000249,7]
[393297689,1762429842342,-151.0,0.000249,7]
[393297690,1762429842351,-151.0,0.000249,7]
[393297691,1762429842360,-156.879259,0.000249,7]
[393297692,1762429842373,-154.327175,0.000249,7]
[393297693,1762429842382,-151.0,0.000249,7]
[393297694,1762429842392,-151.0,0.000249,7]
[393297695,1762429842401,-151.0,0.000249,7]
[393297696,1762429842411,-151.0,0.000249,7]
[393297697,1762429842421,-151.0,0.000249,7]
[393297698,1762429842431,-151.0,0.000249,7]
[393297699,1762429842440,-186.595937,0.000249,7]
[393297700,1762429842449,-151.0,0.000249,7]
[393297701,1762429842459,-151.0,0.000249,7]
[393297702,1762429842468,-151.0,0.000249,7]
[393297703,1762429842477,-188.681201,0.000249,7]
[393297704,1762429842487,-188.681201,0.000249,7]
[393297705,1762429842495,-188.681201,0.000249,7]
[393297706,1762429842505,-188.681201,0.000249,7]
[393297708,1762429842514,-188.681201,0.000249,7]
[393297709,1762429842524,-188.681201,0.000249,7]
[393297711,1762429842534,-188.681201,0.000249,7]
[393297712,1762429842543,-188.681201,0.000249,7]
[393297713,1762429842552,-188.681201,0.000249,7]
[393297714,1762429842561,-188.681201,0.000249,7]
[393297715,1762429842570,-188.681201,0.000249,7]
[393297716,1762429842579,-188.681201,0.000249,7]
[393297717,1762429842590,-188.681201,0.000249,7]
[393297718,1762429842599,-188.681201,0.000249,7]
[393297719,1762429842608,-188.681201,0.000249,7]
[393297720,1762429842617,-188.681206,0.000249,7]
[393297721,1762429842626,-151.0,0.000249,7]
[393297722,1762429842636,-151.0,0.000249,7]
[393297723,1762429842645,-151.0,0.000249,7]
[393297725,1762429842654,-151.0,0.000249,7]
[393297726,1762429842663,-151.0,0.000249,7]
[393297727,1762429842672,-163.149535,0.000249,7]
[393297728,1762429842681,-151.0,0.000249,7]
[393297729,1762429842690,-151.0,0.000249,7]
[393297730,1762429842700,-151.0,0.000249,7]
[393297731,1762429842709,-155.05245,0.000249,7]
[393297732,1762429842718,-162.083578,0.000249,7]
[393297733,1762429842727,-158.159179,0.000249,7]
[393297734,1762429842736,-151.0,0.000249,7]
[393297735,1762429842745,-151.0,0.000249,7]
[393297736,1762429842754,-412.893938,0.000249,7]
[393297737,1762429842763,-340.321544,0.000249,7]
[393297738,1762429842772,-412.893938,0.000249,7]
[393297739,1762429842781,-340.321544,0.000249,7]
[393297740,1762429842790,-412.893938,0.000249,7]
[393297741,1762429842800,-340.321544,0.000249,7]
[393297742,1762429842810,-412.893948,0.000249,7]
[393297743,1762429842819,-340.32153902,0.000249,7]
[393297744,1762429842828,-151.0,0.000249,7]
[393297745,1762429842838,-139763.88932945,0.000249,2]
[393297750,1762429843093,-539.02,0.00024588,10]
[393297751,1762429843103,-5030.2,0.000248,7]
[393297752,1762429843112,-5030.2,0.000248,7]
[393297753,1762429843121,-5030.2,0.000248,7]
[393297754,1762429843130,-5030.2,0.000248,7]
[393297755,1762429843141,-5030.2,0.000248,7]
[393297756,1762429843150,-5030.2,0.000248,7]
[393297757,1762429843160,-5030.2,0.000248,7]
[393297758,1762429843169,-5030.2,0.000248,7]
[393297759,1762429843179,-5030.2,0.000248,7]
[393297760,1762429843190,-5030.2,0.0002489,7]
[393297761,1762429843200,-5030.2,0.0002489,7]
[393297762,1762429843209,-5030.2,0.0002489,7]
[393297763,1762429843218,-5030.2,0.0002489,7]
[393297764,1762429843227,-5030.2,0.0002489,7]
[393297765,1762429843237,-5030.2,0.0002489,7]
[393297766,1762429843246,-141130.10082526,0.000249,2]
[393297769,1762429843275,-39.307512,0.000249,2]
[393297770,1762429843286,-33137.69846994,0.000249,2]
[393297800,1762429846446,-389.12771925,0.00024597,2]
[393297807,1762430028961,684.91255724,0.00037267,120]
[393297808,1762430046279,500.0,0.00037267,60]
[393297809,1762430046524,500.0,0.00037267,60]
[393297810,1762430046759,500.0,0.00037267,60]
[393297811,1762430047052,500.0,0.00037267,60]
[393297812,1762430047288,500.0,0.00037267,60]
[393297813,1762430047578,500.0,0.00037267,60]
[393297814,1762430047881,500.0,0.00037267,60]
[393297815,1762430048125,500.0,0.00037267,60]
[393297816,1762430048364,500.0,0.00037267,60]
[393297817,1762430048609,404.77117947,0.00037267,60]
[393297824,1762430459019,399.23382709,0.00037234,60]
[393297826,1762430680450,500.0,0.00037234,60]
[393297827,1762430680680,500.0,0.00037234,60]
[393297828,1762430680911,500.0,0.00037234,60]
[393297829,1762430681178,500.0,0.00037234,60]
[393297830,1762430681431,500.0,0.00037234,60]
[393297831,1762430681680,160.239103,0.00037234,60]
[393297832,1762430749206,-402.0,0.00023591,2]
[393297833,1762430749229,-300.0,0.00023591,2]
[393297834,1762430749252,-540.42093713,0.00023592,2]
[393297836,1762430847106,-240.0,0.00023591,2]
[393297837,1762430847127,-404.04613552,0.00023592,2]
[393297838,1762430968098,-3514.58953609,0.00023592,2]
[393297862,1762431032113,-402.0,0.00023592,2]
[393297863,1762431032123,-183.50860064,0.00023592,2]
[393297869,1762431037960,-869.03702131,0.00023592,2]
[393297870,1762431037971,-16550.45352331,0.00023592,2]
[393297871,1762431037981,-150.0,0.00023636,2]
[393297872,1762431037991,-3283.47475309,0.00023681,2]
[393297873,1762431038016,-1010.20523796,0.00023681,2]
[393297874,1762431038029,-4041.74793115,0.00023681,2]
[393297875,1762431038039,-399.6403651,0.00024484,2]
[393297876,1762431038048,-160.0,0.00024484,2]
[393297877,1762431038057,-231.83,0.00024488,10]
[393297878,1762431038067,-410.54,0.00024488,10]
[393297879,1762431038076,-342.12,0.00024488,10]
[393297880,1762431038086,-285.1,0.00024488,10]
[393297881,1762431038095,-496.91203089,0.00024496,2]
[393297882,1762431038105,-500.0,0.00024496,2]
[393297883,1762431038115,-249.11853652,0.00024496,2]
[393297884,1762431038124,-500.0,0.00024496,2]
[393297885,1762431038134,-500.0,0.00024496,2]
[393297886,1762431038144,-500.0,0.00024496,2]
[393297887,1762431038153,-500.0,0.00024496,2]
[393297888,1762431038162,-500.0,0.00024496,2]
[393297889,1762431038171,-500.0,0.00024496,2]
[393297890,1762431038181,-500.0,0.00024496,2]
[393297891,1762431038190,-500.0,0.00024496,2]
[393297892,1762431038199,-500.0,0.00024496,2]
[393297893,1762431038208,-500.0,0.00024496,2]
[393297894,1762431038218,-500.0,0.00024496,2]
[393297895,1762431038227,-500.0,0.00024496,2]
[393297896,1762431038237,-500.0,0.00024496,2]
[393297897,1762431038247,-472.67676453,0.00024496,2]
[393297898,1762431038260,-374.37985323,0.00024496,2]
[393297899,1762431038269,-500.0,0.00024496,2]
[393297900,1762431038278,-500.0,0.00024496,2]
[393297901,1762431038287,-500.0,0.00024496,2]
[393297902,1762431038296,-500.0,0.00024496,2]
[393297903,1762431038306,-500.0,0.00024496,2]
[393297904,1762431038315,-500.0,0.00024496,2]
[393297905,1762431038325,-500.0,0.00024496,2]
[393297906,1762431038335,-500.0,0.00024496,2]
[393297907,1762431038345,-350.62650716,0.00024496,2]
[393297908,1762431038354,-500.0,0.00024496,2]
[393297909,1762431038363,-500.0,0.00024496,2]
[393297910,1762431038372,-500.0,0.00024496,2]
[393297911,1762431038382,-500.0,0.00024496,2]
[393297912,1762431038391,-500.0,0.00024496,2]
[393297913,1762431038401,-500.0,0.00024496,2]
[393297914,1762431038411,-500.0,0.00024496,2]
[393297915,1762431038420,-500.0,0.00024496,2]
[393297916,1762431038430,-500.0,0.00024496,2]
[393297917,1762431038440,-500.0,0.00024496,2]
[393297918,1762431038450,-500.0,0.00024496,2]
[393297919,1762431038459,-482.0,0.00024496,2]
[393297920,1762431038469,-500.0,0.00024496,2]
[393297921,1762431038479,-500.0,0.00024496,2]
[393297922,1762431038489,-500.0,0.00024496,2]
[393297923,1762431038499,-500.0,0.00024496,2]
[393297924,1762431038509,-500.0,0.00024496,2]
[393297925,1762431038519,-500.0,0.00024496,2]
[393297926,1762431038529,-500.0,0.00024496,2]
[393297927,1762431038540,-500.0,0.00024496,2]
[393297928,1762431038549,-500.0,0.00024496,2]
[393297929,1762431038559,-500.0,0.00024496,2]
[393297930,1762431038569,-176523.30801131,0.00024498,2]
[393297931,1762431038582,-1393.48827225,0.00024498,2]
[393297932,1762431038594,-3447.30399741,0.00024498,2]
[393297933,1762431038605,-2121.89301114,0.00024498,2]
[393297934,1762431038616,-1239.51115704,0.00024498,2]
[393297935,1762431038628,-1152.68162522,0.00024498,2]
[393297936,1762431038639,-4033.78744814,0.00024498,2]
[393298236,1762431256351,816.0,0.000181,5]
[393298271,1762431440448,8169.80853226,0.00037226,120]
[393298276,1762431932088,-254.0,0.00018894,2]
[393298277,1762431932109,-150.0,0.00019268,2]
[393298278,1762431932134,-150.0,0.00019642,2]
[393298279,1762431932155,-177.0,0.00021268,2]
[393298280,1762431932175,-370.71694854,0.0002229,2]
[393298281,1762431932196,-187.12514517,0.00022591,2]
[393298291,1762432033124,-204.0,0.00023268,2]
[393298292,1762432033144,-173.952338,0.00023403,2]
[393298293,1762432033163,-153.86001036,0.0002439,2]
[393298294,1762432040086,-6.13998964,0.0002439,2]
[393298295,1762432040118,-399.6403651,0.00024397,2]
[393298296,1762432040147,-1907.07002087,0.00024398,2]
[393298343,1762432098706,12666.5536826,0.00037226,21]
[393298390,1762432146081,-829.02928524,0.00018,2]
[393298391,1762432146101,-1826.6290687,0.0002,2]
[393298393,1762432148103,-240.96338209,0.0002,2]
[393298426,1762432206396,291.151739,0.00013699,2]
[393298428,1762432206602,291.151739,0.00020187,2]
[393298732,1762432243595,-1051.48657492,0.00024398,2]
[393298741,1762432246976,-256.98337507,0.00024398,2]
[393298773,1762432555256,199.0,0.00032877,120]
[393298787,1762433145115,-150.0,0.00020735,2]
[393298788,1762433145140,-150.0,0.0002262,2]
[393298789,1762433145160,-160.0,0.00024387,2]
[393298790,1762433145182,-399.6403651,0.00024389,2]
[393298791,1762433145203,-150.0,0.00024392,2]
[393298792,1762433145223,-435.0,0.00024392,2]
[393298793,1762433145243,-1468.42630533,0.00024398,2]
[393298794,1762433169576,2566.88,0.00037227,20]
[393298795,1762433244141,-361.84653594,0.00024398,2]
[393298796,1762433288181,549034.8064301,0.00037227,20]
[393298923,1762433436533,-2954.18718787,0.00024398,2]
[393298924,1762433436543,-435.0,0.00024398,2]
[393298925,1762433436552,-272.75294733,0.00024433,2]
[393298926,1762433436561,-168.0,0.00024468,2]
[393298927,1762433436570,-163.56,0.000245,7]
[393298928,1762433436579,-1683.38,0.000245,7]
[393298929,1762433436590,-500.0,0.00024597,2]
[393298930,1762433436599,-200.0,0.00024658,15]
[393298931,1762433436608,-168.0,0.00024674,2]
[393298932,1762433436617,-412.0,0.00024733,2]
[393298933,1762433436626,-252.94524046,0.0002479,2]
[393298934,1762433436635,-300.0,0.00024877,2]
[393298935,1762433436644,-237.58,0.00024878,10]
[393298936,1762433436654,-500.0,0.00024884,2]
[393298937,1762433436663,-229.49462434,0.00024884,2]
[393298938,1762433436675,-270.50537566,0.00024884,2]
[393298939,1762433436684,-500.0,0.00024884,2]
[393298940,1762433436695,-500.0,0.00024884,2]
[393298941,1762433436704,-405.38612434,0.00024884,2]
[393298954,1762433438369,-94.61387566,0.00024884,2]
[393298955,1762433438516,-248.2234537,0.00024884,2]
[393298956,1762433438534,-372.29183413,0.00024884,2]
[393298957,1762433438543,-152.70887258,0.00024884,2]
[393298958,1762433438553,-198.0,0.00024884,2]
[393298959,1762433438563,-996.11313631,0.00024885,2]
[393298960,1762433438578,-3.88686369,0.00024885,2]
[393298961,1762433438589,-1000.0,0.00024885,2]
[393298962,1762433438599,-1000.0,0.00024885,2]
[393298963,1762433438608,-1000.0,0.00024885,2]
[393298964,1762433438620,-1000.0,0.00024885,2]
[393298965,1762433438629,-1000.0,0.00024885,2]
[393298966,1762433438639,-1076.91654008,0.00024885,2]
[393298967,1762433438648,-151.0,0.00024885,2]
[393298968,1762433438657,-151.0,0.00024885,2]
[393298969,1762433438667,-160.6211612,0.00024885,2]
[393298970,1762433438676,-198636.57543514,0.00024888,2]
[393299170,1762433444408,-398.57277298,0.00024397,2]
[393299171,1762433444418,-642.73080705,0.0002479,2]
[393299172,1762433444427,-4208.69641997,0.00024888,2]
[393299190,1762433447074,-40.20517066,0.00024878,10]
[393299191,1762433447086,-517.59482934,0.00024878,10]
[393299192,1762433447096,-19890.50416253,0.00024888,2]
[393299193,1762433447107,-1174.23992627,0.00024888,2]
[393299196,1762433515975,150.0,0.00016023,2]
[393299197,1762433516373,150.0,0.00017479,2]
[393299198,1762433516946,150.0,0.00018936,2]
[393299201,1762433535371,500.0,0.00037233,60]
[393299202,1762433535622,500.0,0.00037233,60]
[393299203,1762433535909,500.0,0.00037233,60]
[393299204,1762433536170,500.0,0.00037233,60]
[393299205,1762433536421,500.0,0.00037233,60]
[393299206,1762433536833,500.0,0.00037233,60]
[393299207,1762433537146,500.0,0.00037233,60]
[393299208,1762433537336,500.0,0.00037233,60]
[393299209,1762433537587,500.0,0.00037233,60]
[393299210,1762433537828,500.0,0.00037233,60]
[393299211,1762433538081,500.0,0.00037233,60]
[393299212,1762433538348,500.0,0.00037233,60]
[393299213,1762433538596,345.6381906,0.00037233,60]
[393299214,1762433570566,500.0,0.00037233,60]
[393299215,1762433570802,500.0,0.00037233,60]
[393299216,1762433571034,500.0,0.00037233,60]
[393299217,1762433571272,500.0,0.00037233,60]
[393299218,1762433571506,500.0,0.00037233,60]
[393299219,1762433582950,180021.80489729,0.00037233,20]
[393299223,1762433848542,9489.999959,0.00032877,120]
[393299224,1762433859828,10000.0,0.00032877,120]
[393299225,1762433868610,10000.0,0.00032877,120]
[393299226,1762433873271,10000.0,0.00032877,120]
[393299227,1762433877883,10000.0,0.00032877,120]
[393299228,1762433881909,10000.0,0.00032877,120]
[393299229,1762433889522,10000.0,0.00032877,120]
[393299230,1762433941313,6110.000045,0.000372,20]
[393299231,1762433978314,9999.999998,0.00037251,20]
[393299232,1762433996220,10000.0,0.00037251,20]
[393299233,1762434001640,10000.0,0.00037251,20]
[393299234,1762434004124,10000.0,0.00037251,20]
[393299235,1762434006249,10000.0,0.00037251,20]
[393299236,1762434008259,10000.0,0.00037251,20]
[393299237,1762434015268,10000.0,0.00037251,20]
[393299238,1762434017377,10000.0,0.00037251,20]
[393299239,1762434057328,9999.99999999,0.00037251,20]
[393299240,1762434066864,3690.34615304,0.00037251,120]
[393299260,1762434336129,-150.0,0.00016167,2]
[393299261,1762434336150,-203.0,0.00016613,2]
[393299262,1762434336170,-177.0,0.00018167,2]
[393299263,1762434336191,-262.52122234,0.00019105,2]
[393299264,1762434336213,-204.0,0.00020167,2]
[393299265,1762434336232,-300.0,0.00020989,2]
[393299266,1762434336251,-112.96428812,0.00020989,2]
[393299267,1762434454118,-150.0,0.0001732,2]
[393299268,1762434454137,-187.03571188,0.00020989,2]
[393299269,1762434454157,-74.9781274,0.00020989,2]
[393299270,1762434547094,-427.8974,0.00020989,2]
[393299271,1762434549090,-697.1244726,0.00020989,2]
[393299272,1762434549120,-1600.0,0.0002294,2]
[393299273,1762434549144,-300.0,0.00022989,2]
[393299274,1762434549165,-1758.66291572,0.0002299,2]
[393299303,1762434632800,-259.60419376,0.00022989,2]
[393299415,1762434638597,-40.39580624,0.00022989,2]
[393299416,1762434638609,-1750.08519089,0.0002299,2]
[393299417,1762434638623,-626.36917242,0.0002299,2]
[393299418,1762434638655,-17069.11108254,0.0002299,2]
[393299457,1762434640833,-34669.61596199,0.0002299,2]
[393299464,1762434640892,-645.88935581,0.0002299,2]
[393299628,1762434645047,-2034.34875216,0.0002299,2]
[393299629,1762434645103,-3801.87220752,0.0002299,2]
[393299642,1762434647054,-9437.22282221,0.0002299,2]
[393299643,1762434647064,-379.0,0.0002299,2]
[393299644,1762434647076,-617.88940371,0.00023425,2]
[393299645,1762434647086,-262.52122234,0.00023525,2]
[393299646,1762434647095,-1114.08055751,0.000238,2]
[393299647,1762434647106,-464.83,0.00023863,10]
[393299648,1762434647115,-387.36,0.00023863,10]
[393299649,1762434647126,-500.0,0.00023873,2]
[393299650,1762434647135,-244.38891097,0.00023873,2]
[393299651,1762434647146,-35530.28561334,0.00023873,2]
[393299652,1762434647163,-14469.71438666,0.00023873,2]
[393299653,1762434647173,-432.37,0.0002388,10]
[393299654,1762434647183,-500.0,0.00023889,2]
[393299655,1762434647193,-500.0,0.00023889,2]
[393299656,1762434647203,-500.0,0.00023889,2]
[393299657,1762434647213,-423.8810412,0.00023889,2]
[393299658,1762434647223,-151.0,0.0002389,7]
[393299659,1762434647232,-152.547712,0.0002389,7]
[393299660,1762434647243,-153.778008,0.0002389,7]
[393299661,1762434647255,-202.139526,0.0002389,2]
[393299662,1762434647264,-152.899214,0.0002389,7]
[393299663,1762434647274,-158.835844,0.0002389,7]
[393299664,1762434647285,-151.0,0.0002389,7]
[393299665,1762434647295,-151.0,0.0002389,7]
[393299666,1762434647318,-151.0,0.0002389,7]
[393299667,1762434647330,-1266.973594,0.0002389,7]